Workbook

Sheet 01收支总表
A1: 表1：
A2: 部门收支预算总表
A3: 单位名称：岳阳县市场监督管理局 | D3: 单位：万元
A4: 收入项目 | B4: 预算数 | C4: 支出项目 | D4: 预算数
A5: 一、财政预算拨款（补助） | B5: 3,158.20 | C5: 一、本年支出合计 | D5: =SUM(D6:D17) -> 3,508.20
A6: 二、纳入预算管理非税收入拨款 | B6: =SUM(B7:B12) -> 350.00 | C6: 1、一般公共服务支出 | D6: 3,508.20
A7: 1、行政事业性收费收入 | C7: 2、公共安全支出
A8: 2、罚没收入拨款 | B8: 350.00 | C8: 3、教育支出
A9: 3、 政府性基金 | C9: 4、科学技术支出
A10: 4、国有资产有偿使用收入拨款 | C10: 5、文化体育与传媒支出
A11: 5、专项收入拨款 | C11: 6、社会保障和就业支出
A12: 6、其他非税收入拨款 | C12: 7、医疗卫生与计划生育支出
A13: 三、纳入财政专户管理的非税收入拨款 | C13: 8、节能环保支出
A14: 四、事业单位经营收入 | C14: 9、城乡社区支出
A15: 五、上级补助收入 | C15: 10、农林水支出
A16: 六、附属单位上缴收入 | C16: ……
A17: 七、其他收入
A18: 八、上年结余 | C18: 二、年末结转和结余
A19: 收入总计 | B19: =B5+B6+B13+B14+B15+B16+B17+B18 -> 3,508.20 | C19: 支出总计 | D19: =D18+D5 -> 3,508.20

Sheet 02收入总表
A1: 表2
A2: 部门收入预算总表
A3: 单位名称：岳阳县市场监督管理局 | O3: 单位：万元
A4: 收入预算
A5: 合计 | B5: 财政预算拨款 | C5: 纳入预算管理非税收入拨款 | K5: 纳入财政专户管理的非税收入拨款 | L5: 事业单位经营收入 | M5: 上级补助收入 | N5: 附属单位上缴收入 | O5: 其他收入 | P5: 上年结余
C6: 非税小计 | F6: 行政事业性收费收入 | G6: 罚没收入 | H6: 政府性基金 | I6: 专项收入 | J6: 其他收入（纳入预算）
C7: 小计 | D7: 执收成本 | E7: 可支配收入
A8: =B8+C8+K8+L8+M8+N8+O8+P8 -> 3508.20 | B8: 3158.20 | C8: =SUM(D8:E8) -> 350.00 | D8: 210.00 | E8: 140.00

Sheet 03支出总表
A1: 表3
A3: 部门支出预算总表
A4: 单位名称：岳阳县市场监督管理局 | I4: 单位：万元
A5: 功能分类科目 | E5: 合计 | F5: 基本支出 | G5: 项目支出 | H5: 上缴上级支出 | I5: 经营支出 | J5: 对附属单位补助支出
A6: 科目编码 | D6: 科目名称
A7: 款 | B7: 类 | C7: 项
A8: 201 | B8: 38 | C8: 01 | D8: 行政运行 | E8: =SUM(F8:J8) -> 3508.20 | F8: 2938.20 | G8: 570.00
A12: 合 计 | E12: =SUM(F12:J12) -> 3508.20 | F12: =SUM(F8:F11) -> 2938.20 | G12: =SUM(G8:G11) -> 570.00

Sheet 04财政拨款收支总表
A1: 表4
A2: 部门财政拨款收支预算总表
A3: 单位名称：岳阳县市场监督管理局 | D3: 单位：万元
A4: 收 入 | B4: 本年预算 | C4: 支 出 | D4: 本年预算
A5: 项 目 | C5: 项 目(按功能分类)
A6: 一、本年县级财政拨款（补助） | B6: =SUM(B7:B8) -> 3,158.20 | C6: 一、本年支出合计 | D6: =SUM(D7:D18) -> 3,508.20
A7: 1、公共财政拨款 | B7: 3,158.20 | C7: 1、一般公共服务支出 | D7: 3,508.20
A8: 2、政府性基金拨款 | C8: 2、公共安全支出
A9: 二、纳入公共财政预算的非税收入拨款 | B9: =SUM(B10:B15) -> 350.00 | C9: 3、教育支出
A10: 1、行政事业性收费收入 | C10: 4、科学技术支出
A11: 2、罚没收入拨款 | B11: 350.00 | C11: 5、文化体育与传媒支出
A12: 3、 政府性基金 | C12: 6、社会保障和就业支出
A13: 4、国有资产有偿使用收入拨款 | C13: 7、医疗卫生与计划生育支出
A14: 5、专项收入拨款 | C14: 8、节能环保支出
A15: 6、其他非税收入拨款 | C15: 9、城乡社区支出
A16: 三、上级财政拨款补助 | C16: 10、农林水支出
A17: 1、公共财政补助 | C17: ……
A18: 2、政府性基金补助
A19: 四、上年财政拨款结余 | C19: 二、年末结转和结余
A20: 收 入 总 计 | B20: =B19+B16+B9+B6 -> 3,508.20 | C20: 支 出 总 计 | D20: =D6+D19 -> 3,508.20

Sheet 05一般公共预算支出表
A1: 表5
A2: 一般公共预算支出预算总表
A3: 单位名称：岳阳县市场监督管理局 | K3: 单位：万元
A4: 功能分类科目 | E4: 预算数
A5: 科目编码 | D5: 科目名称 | E5: 小计 | F5: 基本支出 | I5: 项目支出 | L5: 结转下年
A6: 类 | B6: 款 | C6: 项 | F6: 工资福利支出 | G6: 一般商品和服务支出 | H6: 对个人和家庭的补助 | I6: 专项商品和服务支出 | J6: 资本性支出 | K6: 其他支出
A7: 201 | B7: 38 | C7: 01 | D7: 行政运行 | E7: =SUM(F7:L7) -> 3508.20 | F7: 2451.60 | G7: 486.60 | I7: 530.60 | J7: 39.40
A11: 合 计 | E11: =SUM(E7:E10) -> 3508.20 | F11: =SUM(F7:F10) -> 2451.60 | G11: 486.60 | I11: 530.60 | J11: 39.40
A12: 注：支出应明细到功能分类项级科目

Sheet 06一般公共预算基本支出表
A1: 表6
A2: 一般公共预算基本支出预算表
A3: 单位名称：岳阳县市场监督管理局 | E3: 单位：万元
A4: 部门经济分类 | C4: 工资福利 | D4: 商品和服务支出 | E4: 对个人和家庭的补助 | F4: 合计
A5: 科目编码 | B5: 科目名称
A6: 合计 | C6: =SUM(C7:C57) -> 2451.6 | D6: =SUM(D7:D57) -> 486.6 | F6: =SUM(C6:E6) -> 2938.2
A7: 30101 | B7: 基本工资 | C7: 977.3 | F7: =SUM(C7:E7) -> 977.3
A8: 30102 | B8: 津贴补贴 | C8: 764.6 | F8: 764.6
A9: 30103 | B9: 奖金 | C9: 81.4 | F9: 81.4
A10: 30106 | B10: 伙食补助费 | F10: 0
A11: 30107 | B11: 绩效工资 | F11: 0
A12: 30108 | B12: 机关事业单位基本养老保险缴费 | C12: 271.3 | F12: 271.3
A13: 30109 | B13: 职业年金缴费 | F13: 0
A14: 30110 | B14: 职工基本医疗保险缴费 | C14: 117.4 | F14: 117.4
A15: 30111 | B15: 公务员医疗补助缴费 | F15: 0
A16: 30112 | B16: 其他社会保障缴费 | C16: 15.7 | F16: 15.7
A17: 30113 | B17: 住房公积金 | C17: 187.8 | F17: 187.8
A18: 30114 | B18: 医疗费 | F18: 0
A19: 30199 | B19: 其他工资福利支出 | C19: 36.1 | F19: 36.1
A20: 30201 | B20: 办公费 | D20: 60 | F20: 60
A21: 30202 | B21: 印刷费 | D21: 30 | F21: 30
A22: 30203 | B22: 咨询费 | F22: 0
A23: 30204 | B23: 手续费 | F23: 0
A24: 30205 | B24: 水费 | D24: 5 | F24: 5
A25: 30206 | B25: 电费 | D25: 20 | F25: 20
A26: 30207 | B26: 邮电费 | D26: 10 | F26: 10
A27: 30208 | B27: 取暖费 | F27: 0
A28: 30209 | B28: 物业管理费 | D28: 30 | F28: 30
A29: 30211 | B29: 差旅费 | D29: 60 | F29: 60
A30: 30212 | B30: 因公出国（境）费用 | F30: 0
A31: 30213 | B31: 维修(护)费 | D31: 15 | F31: 15
A32: 30214 | B32: 租赁费 | D32: 10 | F32: 10
A33: 30215 | B33: 会议费 | D33: 5 | F33: 5
A34: 30216 | B34: 培训费 | D34: 30 | F34: 30
A35: 30217 | B35: 公务接待费 | D35: 14 | F35: 14
A36: 30218 | B36: 专用材料费 | F36: 0
A37: 30224 | B37: 被装购置费 | F37: 0
A38: 30225 | B38: 专用燃料费 | F38: 0
A39: 30226 | B39: 劳务费 | D39: 10 | F39: 10
A40: 30227 | B40: 委托业务费 | F40: 0
A41: 30228 | B41: 工会经费 | D41: 24.9 | F41: 24.9
A42: 30229 | B42: 福利费 | D42: 10 | F42: 10
A43: 30231 | B43: 公务用车运行维护费 | D43: 30 | F43: 30
A44: 30239 | B44: 其他交通费用 | D44: 112.7 | F44: 112.7
A45: 30240 | B45: 税金及附加费用 | F45: 0
A46: 30299 | B46: 其他商品和服务支出 | D46: 10 | F46: 10
A47: 30301 | B47: 离休费 | F47: 0
A48: 30302 | B48: 退休费 | F48: 0
A49: 30303 | B49: 退职（役）费 | F49: 0
A50: 30304 | B50: 抚恤金 | F50: 0
A51: 30305 | B51: 生活补助 | F51: 0
A52: 30306 | B52: 救济费 | F52: 0
A53: 30307 | B53: 医疗费补助 | F53: 0
A54: 30308 | B54: 助学金 | F54: 0
A55: 30309 | B55: 奖励金 | F55: 0
A56: 30310 | B56: 个人农业生产补贴 | F56: 0
A57: 30399 | B57: 其他对个人和家庭的补助 | F57: 0

Sheet 07政府性基金支出表
A1: 表7
A2: 政府性基金收支预算总表
A3: 单位名称：岳阳县市场监督管理局 | K3: 单位：万元
A4: 功能分类科目 | E4: 收入 | H4: 本年支出 | K4: 年末结转和结余
A5: 科目编码 | D5: 科目名称 | E5: 合计 | F5: 年初结转和结余 | G5: 本年收入 | H5: 合计 | I5: 基本支出 | J5: 项目支出
A6: 类 | B6: 款 | C6: 项
A10: 合计 | E10: =SUM(E6:E9) -> 0 | G10: =SUM(G6:G9) -> 0 | H10: 0 | I10: 0 | J10: 0 | K10: 0
A11: 备注：本表无数据，本单位今年无政府性基金预算收入支出。

Sheet 08三公经费表
A1: 表8：
A2: 一般公共预算“三公”经费预算支出表
A3: 单位名称：岳阳县市场监督管理局 | C3: 单位：万元
A4: 项 目 | B4: 预算数 | C4: 与上年对比增减变化原因说明
A5: 合计 | B5: =SUM(B6:B8) -> 104
A6: 1、因公出国（境）费用
A7: 2、公务接待费 | B7: 28 | C7: 比上年预算数减少7万元，主要原因为进一步加强公务接待管理，严格控制接待费用。
A8: 3、公务用车费 | B8: =SUM(B9:B10) -> 76 | C8: 比上年预算数减少8.5万元，主要原因是单位公车改革缩减车辆运行费用。
A9: 其中：（1）公务用车运行维护费 | B9: 76
A10: （2）公务用车购置

Sheet 09整体绩效表
A1: 表9
A2: 部门（单位）整体支出预算绩效目标批复表
A3: （2019年度）
A4: 填报单位（盖章）：岳阳县市场监督管理局 | F4: 填报时间：2018-12-21
A5: 部门基本信息 | B5: 部门（单位）名称 | C5: 岳阳县市场监督管理局
B6: 预算绩效管理 联络员 | C6: 蒋湘君 | E6: 联系电话 | G6: 7667328
B7: 人员编制 | C7: 279 | E7: 实有人数 | G7: 369
B8: 单位职能 | C8: 按照职能调整及新组建的单位职能职责要求，本局承担着全县产品质量监督、特种设备安全监察、食品药品安全监管、商标广告监管、个体私营企业监管、合同行政监管、标准化及计量监管，公平交易监管、市场秩序监管、消费维权等重要职能职责。
B9: 单位年度收入预算（万元）
B10: 收入合计 | C10: 公共财政拨款 | E10: 纳入预算管理的非税收入拨款 | F10: 政府性基金拨款 | G10: 其它拨款
B11: =C11+E11+F11+G11 -> ¥3,508.20 | C11: 3158.2 | E11: 350
B12: 单位年度支出预算（万元）
B13: 支出合计 | C13: 基本支出 | F13: 项目支出
B14: =C14+F14 -> ¥3,508.20 | C14: 2938.2 | F14: 570
B15: 其中 | C15: “三公”经费预算（万元）
B16: 合计 | C16: 公务用车运行和购置费 | F16: 因公出国（境）费 | G16: 公务接待费
B17: =C17+F17+G17 -> ¥104.00 | C17: 76 | G17: 28
A18: 年度绩效目标 部门整体支出 | B18: 目标1：按政策保证人员费用支出； 目标2：保证单位日常运行正常开展的经费支出 ； 目标3：突出监管执法重点，保证专项监管执法经费到位； 目标4：严控“三公经费”，确保政府采购执行等质量目标到位。
A19: 年度绩效指标 部门整体支出 | B19: 一级指标 | C19: 二级指标 | D19: 指标内容 | F19: 指标值 | G19: 备注
B20: 产出指标 （预期提供的公共产品或服务) | C20: 数量目标（指标） | D20: 财政供养人员控制率 | F20: 100%
D21: 三公经费控制率 | F21: 100%
D22: “三公经费”变动率 | F22: ≤0
D23: 政策性人员费用支出 | F23: 100%
A24: 年度绩效指标 部门整体支出 | B24: 产出指标 （预期提供的公共产品或服务) | C24: 质量目标（指标） | D24: 政府采购执行率 | F24: 100%
D25: 公务卡刷卡率 | F25: ≥40%
D26: 固定资产利用率 | F26: 100%
D27: 各项市场监管覆盖率 | F27: 100%
C28: 进度目标（指标） | D28: 年底前完成 | F28: 100%
C30: 成本目标（指标） | D30: 控制在预算内 | F30: 3508.2万元
B32: 效益指标 （预期实现的效益) | C32: 社会效益（指标） | D32: 大力实施商事登记制度改革，营造宽松平等的市场准入环境；着力“升级”服务措施，实现窗口服务精细化；突出监管执法重点，强化专项监管执法力度；积极服务县域经济发展，抓好抓实城市大提质。 | F32: 100%
C34: 经济效益（指标） | D34: 非税收入入库率 | F34: 100%
C36: 生态效益（指标） | D36: 12315投诉举报处理率 | F36: 100%
C38: 可持续影响（指标） | D38: 促进县局经济各项指标执行率 | F38: 100%
C40: 社会公众或服务对象满意度 | D40: 社会公众满意度 | F40: ≥95%
A42: 其它需要说明的问题
A43: 财政部门审核意见 | C43: 同意按预算绩效目标执行 2019年6月6日
A44: 单位负责人：陈晓军 | E44: 填报人：蒋湘君
A45: 联系电话：7667301 | E45: 联系电话：7667328

Sheet 10重点项目绩效表（省级食品安全示范县创建专项）
A1: 表10
A2: 财政项目支出预算绩效目标批复表
A3: （2019年度）
A4: 填报单位（盖章）：岳阳县市场监督管理局 | G4: 单位：万元
A5: 项目基本情况 | B5: 项目名称 | C5: 省级食品安全示范县创建专项
B6: 项目属性 | C6: □新增项目 ■延续项目
B7: 主管部门 | C7: 岳阳县市场局 | E7: 项目起止时间 | G7: 2019.1-12
B8: 项目类型 | C8: 1.基本建设类 □ 其中：新建 □ 扩建 □ 改建 □ 2.行政事业类 ■ 其中: 经费类■ 采购类□ 修缮类□ 奖励类□ 3.其他专项类 □ 其中: 补贴类□ 其它类□
B9: 项目概况 | C9: 创建省级食品安全示范县，保障全县人民“舌尖上的安全”。
B10: 项目立项依据 | C10: 《湖南省食品安全委员会办公室关于开展湖南省食品安全市创建试点工作的通知》（湘食安办发[2016]5号）、《湖南省食品安全委员会办公室关于开展第二批湖南省食品安全示范县（市区）创建工作的通知》（湘食安办函[2017]11号）
A11: 项目资金情况 | B11: 项目资金申请（万元） | C11: 项 目 | D11: 上年度安排资金 | G11: 本年度安排资金
C12: 合 计 | D12: 400 | G12: 400
C13: 中央资金
C14: 省级资金
C15: 市级资金
C16: 县级资金 | D16: 400 | G16: 400
B17: 支出明细预算（万元） | C17: 项 目 | D17: 上年度安排资金 | E17: 本年度安排资金 | G17: 测算依据及说明
C18: 合 计
C19: 1、省级食品安全示范县创建专项 | D19: 400 | E19: 400 | G19: 依据上年专项情况
C20: 2、
C21: 3、
C22: 4、
C23: 5、
A24: 单位已有的（或拟订的）保证项目实施的制度、措施 | C24: 1、《岳阳县市场局财务管理制度》 2、《岳阳县市场局经费管理办法》
A25: 项目绩效目标 | B25: 长期目标 | E25: 年度目标
B26: 以创建食品安全示范市（县）为突破口，支持鼓励创新监管方式方法，探索治理食品安全的有效措施和工作机制，推动食品安全监管能力大幅提升，依法治理成效明显，突出问题得到有效解决，食品安全状况有序可控。 | E26: 通过以点带面、示范引领，促进食品产业健康发展，推动我县食品安全整体形势持续稳定向好，人民群众对食品安全的满意度明显提升。
A27: 项目年度绩效指标 | B27: 一级指标 | C27: 二级指标 | D27: 指标内容 | F27: 指标值 | G27: 备注
B28: 产出指标（预期提供的公共产品或服务) | C28: 数量目标（指标） | D28: 联合相关部门监督抽检 | F28: 3000批次
C30: 质量目标（指标） | D30: 创建省级食品安全示范县 | F30: 100%
C32: 时效目标（指标） | D32: 年底前完成 | F32: 100%
C34: 成本目标（指标） | D34: 638万元 | F34: 100%
B36: 效益指标（预期实现的效益) | C36: 经济效益（指标） | D36: 确保全县食品安全，推动县域经济又好又快发展。 | F36: 100%
C38: 社会效益（指标） | D38: 促进食品产业健康发展 | F38: 100%
C40: 环境效益（指标） | D40: 食品安全市场巡查监管 | F40: 100%
C42: 可持续影响（指标） | D42: 食品安全整体形势持续稳定向好 | F42: 100%
C44: 服务对象满意度 | D44: 人民群众对食品安全的满意度 | F44: 明显提升
A46: 其他需要说明的 问题
A47: 财政部门审核意见 | C47: 同意按预算绩效目标执行 2019年6月6日（盖章）
A48: 单位负责人：陈晓军 | E48: 填报人：蒋湘君
A49: 联系电话：7667301 | E49: 联系电话：7667328
E50: 填报时间：2018年12月21日

Sheet 10重点项目绩效表（食品安全监管和检测专项）
A1: 表10
A2: 财政项目支出预算绩效目标批复表
A3: （2019年度）
A4: 填报单位（盖章）：岳阳县市场监督管理局 | G4: 单位：万元
A5: 项目基本情况 | B5: 项目名称 | C5: 食品安全监管和检测专项
B6: 项目属性 | C6: □新增项目 ■延续项目
B7: 主管部门 | C7: 岳阳县市场局 | E7: 项目起止时间 | G7: 2019.1-12
B8: 项目类型 | C8: 1.基本建设类 □ 其中：新建 □ 扩建 □ 改建 □ 2.行政事业类 ■ 其中: 经费类■ 采购类□ 修缮类□ 奖励类□ 3.其他专项类 □ 其中: 补贴类□ 其它类□
B9: 项目概况 | C9: 食品安全抽检监测、打击制售假冒食品行为、食品产业经营统一规范、建立健全的投诉举报和宣传教育体系等。
B10: 项目立项依据 | C10: 《中华人民共和国食品安全法实施条例》、《湖南省人民政府关于加强食品安全工作的意见》（湘政发[2016]30号）
A11: 项目资金情况 | B11: 项目资金申请（万元） | C11: 项 目 | D11: 上年度安排资金 | G11: 本年度安排资金
C12: 合 计 | D12: 150 | G12: 150
C13: 中央资金
C14: 省级资金
C15: 市级资金
C16: 县级资金 | D16: 150 | G16: 150
B17: 支出明细预算（万元） | C17: 项 目 | D17: 上年度安排资金 | E17: 本年度安排资金 | G17: 测算依据及说明
C18: 合 计 | D18: 150 | E18: 150 | G18: 依据上年专项情况
C19: 1、食品安全监管专项 | D19: 30 | E19: 30
C20: 2、食品药品检验专项 | D20: 90 | E20: 90
C21: 3、打假专项 | D21: 30 | E21: 30
C22: 4、
C23: 5、
A24: 单位已有的（或拟订的）保证项目实施的制度、措施 | C24: 1、《岳阳县市场局财务管理制度》 2、《岳阳县市场局经费管理办法》
A25: 项目绩效目标 | B25: 长期目标 | E25: 年度目标
B26: 严格规范食品生产经营行为，不断提高食品安全保障能力和水平，确保全县食品安全监管工作顺利开展。 | E26: 1、食品监管检查覆盖率100%； 2、不合格食品检查处置率100%。
A27: 项目年度绩效指标 | B27: 一级指标 | C27: 二级指标 | D27: 指标内容 | F27: 指标值 | G27: 备注
B28: 产出指标（预期提供的公共产品或服务) | C28: 数量目标（指标） | D28: 食品抽检 | F28: 730批次
C30: 质量目标（指标） | D30: 保障全县人民群众“舌尖上的安全” | F30: 100%
C32: 时效目标（指标） | D32: 年底前完成 | F32: 100%
C34: 成本目标（指标） | D34: 150万元 | F34: 100%
B36: 效益指标（预期实现的效益) | C36: 经济效益（指标） | D36: 非税收入入库率 | F36: 100%
C38: 社会效益（指标） | D38: 严格规范市场食品生产经营活动，确保全县食品安全，推动县域经济健康发展。 | F38: 100%
C40: 环境效益（指标） | D40: 食品安全市场巡查、监督 | F40: 100%
C42: 可持续影响（指标） | D42: 食品安全监管不断规范 | F42: 100%
C44: 服务对象满意度 | D44: 服务对象满意度 | F44: ≥95%
A46: 其他需要说明的 问题
A47: 财政部门审核意见 | C47: 同意按预算绩效目标执行 2019年6月6日（盖章）
A48: 单位负责人：陈晓军 | E48: 填报人：蒋湘君
A49: 联系电话：7667301 | E49: 联系电话：7667328
E50: 填报时间：2018年12月21日

Sheet 10重点项目绩效表（执法办案专项）
A1: 表10
A2: 财政项目支出预算绩效目标批复表
A3: （2019年度）
A4: 填报单位（盖章）：岳阳县市场监督管理局 | G4: 单位：万元
A5: 项目基本情况 | B5: 项目名称 | C5: 执法办案专项
B6: 项目属性 | C6: □新增项目 ■延续项目
B7: 主管部门 | C7: 岳阳县市场局 | E7: 项目起止时间 | G7: 2019.1-12
B8: 项目类型 | C8: 1.基本建设类 □ 其中：新建 □ 扩建 □ 改建 □ 2.行政事业类 ■ 其中: 经费类■ 采购类□ 修缮类□ 奖励类□ 3.其他专项类 □ 其中: 补贴类□ 其它类□
B9: 项目概况 | C9: 积极履行市场监管职责，严厉打击违法违章经营行为，切实维护广大消费者的合法权益，促进全县市场经营秩序良好，营造公平竞争的市场环境。
B10: 项目立项依据 | C10: 《行政处罚法》、《消费者权益保护法》、《反不正当竞争法》、《无照经营查处取缔办法》、《反垄断法》、《禁止传销条例》等
A11: 项目资金情况 | B11: 项目资金申请（万元） | C11: 项 目 | D11: 上年度安排资金 | G11: 本年度安排资金
C12: 合 计 | D12: 105 | G12: 105
C13: 中央资金
C14: 省级资金
C15: 市级资金
C16: 县级资金 | D16: 105 | G16: 105
B17: 支出明细预算（万元） | C17: 项 目 | D17: 上年度安排资金 | E17: 本年度安排资金 | G17: 测算依据及说明
C18: 合 计
C19: 1、执法办案专项 | D19: 105 | E19: 105 | G19: 依据上年专项情况
C20: 2、
C21: 3、
C22: 4、
C23: 5、
A24: 单位已有的（或拟订的）保证项目实施的制度、措施 | C24: 1、《岳阳县市场局财务管理制度》 2、《岳阳县市场局经费管理办法》
A25: 项目绩效目标 | B25: 长期目标 | E25: 年度目标
B26: 规范和维护各类市场经营秩序，依法查处违法直销和传销案件、不正当竞争、商业贿赂、走私贩私等经济违法行为。 | E26: 违法行为立案查处率100%
A27: 项目年度绩效指标 | B27: 一级指标 | C27: 二级指标 | D27: 指标内容 | F27: 指标值 | G27: 备注
B28: 产出指标（预期提供的公共产品或服务) | C28: 数量目标（指标） | D28: 立案查处数 | F28: 450起
C30: 质量目标（指标） | D30: 以强化执法监督为重点，有效防控执法风险 | F30: 100%
C32: 时效目标（指标） | D32: 年底前完成 | F32: 100%
C34: 成本目标（指标） | D34: 105万元 | F34: 100%
B36: 效益指标（预期实现的效益) | C36: 经济效益（指标） | D36: 立案查处罚没款入库率 | F36: 100%
C38: 社会效益（指标） | D38: 依法查处市场各类违法违规行为，积极促进县城经济发展。 | F38: 100%
C40: 环境效益（指标） | D40: 案件处理率 | F40: 100%
C42: 可持续影响（指标） | D42: 促进执法能力不断提高 | F42: 100%
C44: 服务对象满意度 | D44: 服务对象满意度 | F44: ≥95%
A46: 其他需要说明的 问题
A47: 财政部门审核意见 | C47: 同意按预算绩效目标执行 2019年6月6日（盖章）
A48: 单位负责人：陈晓军 | E48: 填报人：蒋湘君
A49: 联系电话：7667301 | E49: 联系电话：7667328
E50: 填报时间：2018年12月21日
